bitfinex/quotes_ETHUSD_20250808
["timestamp","ask_amount","ask_price","bid_price","bid_amount"]
[1754611977638,6.142,3909.4,3909.3,2.55800271]
[1754611978139,0.002,3909.5,3909.4,2.55793727]
[1754611978345,3.99,3909.5,3909.4,2.55793727]
[1754611980112,3.99,3909.5,3909.4,3.10793727]
[1754611980341,5.4548,3909.5,3909.4,2.55793727]
[1754611980541,5.0043,3909.5,3909.4,2.55793727]
[1754611980729,0.002,3909.5,3909.4,6.10793727]
[1754611981040,0.002,3909.5,3909.4,6.23593727]
[1754611981041,3.99,3909.5,3909.4,6.23593727]
[1754611981241,0.002,3909.5,3909.4,6.23593727]
[1754611981459,0.04,3909.9,3909.8,3.10767558]
[1754611981746,1e-08,3909.9,3909.8,17.42356886]
[1754611981915,1e-08,3909.9,3909.8,18.36916886]
[1754611982223,1e-08,3909.9,3909.8,17.55156886]
[1754611982424,1e-08,3909.9,3909.8,6.23567558]
[1754611983047,5.45280001,3909.9,3909.8,0.128]
[1754611984315,3.98800001,3909.9,3909.8,0.128]
[1754611985451,5.00230001,3909.9,3909.8,0.128]
[1754611985618,5.00230001,3909.9,3909.8,6.23567558]
[1754611985619,1e-08,3909.9,3909.8,6.23567558]
[1754611985818,1e-08,3909.9,3909.8,6.75227558]
[1754611986019,1e-08,3909.9,3909.8,10.51402358]
[1754611986221,1e-08,3909.9,3909.8,9.18415258]
[1754611986420,6.144,3910.8,3910.7,3.10708696]
[1754611986658,10.131,3910.8,3910.7,3.23508696]
[1754611987024,1.0143,3911.3,3910.8,3.10702158]
[1754611987326,1.0143,3911.7,3910.8,6.62362158]
[1754611987533,7.1573,3912.2,3911.8,2.55636791]
[1754611987759,4.027,3911.9,3911.7,2.55642234]
[1754611988058,4.027,3911.9,3911.3,0.55]
[1754611988059,4.027,3911.9,3911.8,0.128]
[1754611988265,5.4918,3911.9,3911.3,2.55668563]
[1754611988454,4.4775,3911.9,3911.5,0.128]
[1754611988655,1.0143,3911.8,3911.5,3.128]
[1754611988861,1.4648,3911.7,3911.5,0.128]
[1754611989329,1.4648,3911.6,3911.5,0.128]
[1754611990178,1.0143,3911.6,3911.5,0.128]
[1754611990335,1.4648,3911.6,3911.5,0.128]
[1754611991573,4.027,3911.9,3911.5,3.128]
[1754611991871,4.027,3911.9,3911.8,2.55636791]
[1754611991872,0.04,3911.9,3911.8,2.55636791]
[1754611992072,0.04,3911.9,3911.8,6.10636791]
[1754611992274,0.04,3911.9,3911.8,6.62296791]
[1754611992573,0.04,3911.9,3911.8,6.23436791]
[1754611994776,0.04,3911.9,3911.8,3.678]
[1754611995075,0.04,3911.9,3911.8,6.23436791]
[1754611995267,0.04,3911.9,3911.8,3.678]
[1754611995582,0.04,3911.9,3911.8,11.01957191]
[1754611995783,0.04,3911.9,3911.8,15.61636491]
[1754611996186,0.04,3911.9,3911.8,20.63768591]
[1754611996489,0.04,3911.9,3911.8,19.58783691]
[1754611997052,0.04,3911.9,3911.8,24.20012191]
[1754611997256,1e-08,3911.9,3911.8,24.20012191]
[1754611997452,1e-08,3911.9,3911.8,23.70073091]
[1754611997685,1e-08,3911.9,3911.8,27.68473091]
[1754611998684,1e-08,3911.9,3911.8,20.26442691]
[1754611999269,1e-08,3911.9,3911.8,17.00770191]
[1754611999694,1e-08,3911.9,3911.8,6.10636791]
[1754611999863,0.00200001,3911.9,3911.8,5.55636791]
[1754612000369,0.00200001,3911.9,3911.8,2.55636791]
[1754612000569,0.00200001,3911.9,3911.8,3.10636791]
[1754612000975,0.00200001,3911.9,3909.9,0.5166]
[1754612000976,1.41340001,3911.9,3909.9,0.5166]
[1754612001170,1.44335459,3911.8,3910.5,2.55717035]
[1754612001401,5.42835541,3911.7,3910.3,2.55733916]
[1754612001557,1.44335623,3911.6,3910.1,2.55742825]
[1754612001758,2.55662933,3911.4,3910.1,2.55742825]
[1754612002061,3.985,3911.7,3910.1,2.55747875]
[1754612002062,2.55698391,3910.9,3910.1,2.55747875]
[1754612002268,5.3984,3910.8,3910.1,2.55747875]
[1754612002575,0.9573,3910.7,3910.5,0.55]
[1754612002759,0.9573,3910.7,3910.5,2.55715269]
[1754612003063,0.9573,3911.1,3910.5,2.55715921]
[1754612003286,0.9573,3911.1,3910.6,0.55]
[1754612003607,2.55610272,3912.3,3910.8,0.55]
[1754612003806,14.5,3913.4,3911.5,3.10656397]
[1754612003807,0.9573,3911.6,3911.5,3.10656397]
[1754612004013,3.988,3911.8,3911.7,3.10641476]
[1754612004212,1.4114,3912.1,3911.8,3.10636791]
[1754612004413,10.12800001,3911.9,3911.8,6.10636791]
[1754612004730,3.99000001,3911.9,3911.8,6.10636791]
[1754612004938,5.40140001,3911.9,3911.8,3.55]
[1754612005134,5.40140001,3911.9,3910.7,0.55]
[1754612005298,4.44410001,3911.9,3911.5,0.55]
[1754612005608,1.4114,3911.8,3911.7,0.128]
[1754612006197,1.4114,3911.8,3911.7,0.678]
[1754612007497,1.4114,3911.8,3911.7,3.23443326]
[1754612007688,0.9573,3911.8,3911.7,0.678]
[1754612008095,3.99000001,3911.9,3911.8,3.10636791]
[1754612008295,3.99000001,3911.9,3911.8,6.10636791]
[1754612008528,0.00200001,3911.9,3911.8,6.36468426]
[1754612008830,0.00200001,3911.9,3911.8,12.30550391]
[1754612009000,0.00200001,3911.9,3911.8,13.25110391]
[1754612009535,1e-08,3911.9,3911.8,34.50295291]
[1754612009714,1e-08,3911.9,3911.8,26.85515891]
[1754612010226,1e-08,3911.9,3911.8,25.06446991]
[1754612010409,1e-08,3911.9,3911.8,21.90461391]
[1754612010616,1e-08,3911.9,3911.8,9.50043291]
[1754612010817,1e-08,3911.9,3911.8,13.48643291]
[1754612011021,1e-08,3911.9,3911.8,14.00303291]
[1754612011722,1e-08,3911.9,3911.8,14.30403291]
[1754612012334,1e-08,3911.9,3911.8,13.05877191]
[1754612013335,3.983,3913.3,3912.8,6.10571457]
[1754612013545,0.9573,3913.7,3912.8,18.52025957]
[1754612013748,1e-08,3912.9,3912.8,23.91652757]
[1754612014038,1e-08,3912.9,3912.8,24.21752757]
[1754612014610,1e-08,3912.9,3912.8,19.45152757]
[1754612014928,1e-08,3912.9,3912.8,6.23371457]
[1754612015128,1e-08,3912.9,3912.8,13.54530057]
[1754612015430,1e-08,3912.9,3912.8,13.27662957]
[1754612015630,1e-08,3912.9,3912.8,6.23371457]
[1754612015830,0.95730001,3912.9,3912.8,6.23371457]
[1754612016410,1.41140001,3912.9,3912.8,0.128]
[1754612017131,1e-08,3912.9,3912.8,5.68371457]
[1754612017309,1e-08,3912.9,3912.8,10.75748557]
[1754612017800,1e-08,3912.9,3912.8,6.23371457]
[1754612018411,0.95730001,3912.9,3912.8,6.23371457]
[1754612018732,1.41140001,3912.9,3912.8,6.23371457]
[1754612019131,0.95730001,3912.9,3912.8,6.23371457]
[1754612019714,1e-08,3912.9,3912.8,6.23371457]
[1754612019909,1e-08,3912.9,3912.8,24.78583849]
[1754612020109,1e-08,3912.9,3912.8,30.65935349]
[1754612020314,1e-08,3912.9,3912.8,19.00668749]
[1754612020933,1e-08,3912.9,3912.8,21.86096649]
[1754612021321,1e-08,3912.9,3912.8,41.11851949]
[1754612022301,0.04,3913.9,3913.8,6.10506157]
[1754612022506,0.04,3913.9,3913.8,9.43558057]
[1754612022705,0.04,3913.9,3913.8,28.45329957]
[1754612022906,0.04,3913.9,3913.8,20.38120457]
[1754612023101,0.04,3913.9,3913.8,11.36260557]
[1754612023317,0.04,3913.9,3913.8,13.17004357]
[1754612023537,0.04,3913.9,3913.8,8.37855557]
[1754612023832,1.0643,3913.9,3913.8,8.37855557]
[1754612024135,0.04,3913.9,3913.8,18.06399157]
[1754612024441,1.0643,3913.9,3913.8,6.23306157]
[1754612024737,1.5035,3913.9,3913.8,5.68306157]
[1754612024908,1.5035,3913.9,3913.8,3.128]
[1754612025104,1.5035,3913.9,3913.8,0.128]
[1754612025336,2.55511522,3913.8,3913.0,2.55556785]
[1754612025636,1.4635,3913.7,3913.6,0.55]
[1754612025934,1.4635,3913.7,3913.5,0.128]
[1754612026130,0.19055,3913.9,3913.6,0.55]
[1754612026337,0.19055,3913.9,3913.5,0.128]
[1754612026503,2.74559489,3913.9,3913.5,0.128]
[1754612026706,1.4635,3913.8,3913.5,0.128]
[1754612027104,4.471472,3913.7,3912.6,2.55584312]
[1754612027306,4.01869485,3913.6,3913.2,0.128]
[1754612027535,4.01869485,3913.6,3913.1,0.128]
[1754612027740,1.4635,3913.5,3913.1,0.128]
[1754612027925,1.4635,3913.4,3913.1,0.128]
[1754612028128,3.983,3913.3,3913.1,0.128]
[1754612028331,2.58739649,3913.2,3913.1,0.678]
[1754612028629,4.05089649,3913.2,3912.5,3.0]
[1754612028827,1.4635,3913.1,3912.9,0.128]
[1754612029038,0.03194479,3913.0,3912.7,0.128]
[1754612029208,1.4635,3912.9,3912.7,0.128]
[1754612029405,1.4635,3912.8,3912.7,0.678]
[1754612029745,1.4635,3912.8,3912.7,3.23377989]
[1754612030040,1.4635,3912.8,3912.7,0.678]
[1754612030940,3.982,3913.0,3912.8,0.55]
[1754612031241,5.0063,3913.0,3912.9,3.10564926]
[1754612031737,0.4392,3913.3,3913.2,3.10545333]
[1754612031937,3.982,3913.4,3913.3,0.55]
[1754612032138,3.982,3913.4,3913.3,0.128]
[1754612032543,5.4455,3913.4,3913.3,0.128]
[1754612032911,5.4455,3913.4,3911.8,0.001]
[1754612033246,2.55548199,3913.2,3912.7,0.128]
[1754612033441,1.5915,3913.3,3912.7,3.128]
[1754612033629,1.4635,3913.2,3912.8,0.55]
[1754612034031,0.128,3913.3,3912.7,0.128]
[1754612034032,1.49544398,3913.1,3912.7,0.128]
[1754612034348,1.4635,3913.0,3912.7,0.128]
[1754612034559,4.01912093,3913.0,3912.8,0.55]
[1754612034743,1.4635,3912.9,3912.0,2.55617938]
[1754612034920,8.03322496,3912.8,3912.3,0.128]
[1754612035127,1.4635,3912.7,3912.3,0.128]
[1754612035314,0.03194806,3912.6,3912.3,0.128]
[1754612035515,1.4635,3912.5,3912.3,0.128]
[1754612035715,1.4635,3912.4,3912.1,3.0]
[1754612036047,1.0243,3912.4,3912.3,3.1060412]
[1754612036346,3.982,3912.4,3912.3,3.2340412]
[1754612036645,1.4635,3912.8,3912.7,3.10577989]
[1754612036850,0.128,3913.4,3912.8,3.10571454]
[1754612037047,1.0243,3913.5,3913.3,0.678]
[1754612037253,6.264,3913.8,3913.3,0.678]
[1754612037548,1.4635,3913.4,3913.3,0.678]
[1754612038515,0.4392,3913.7,3913.5,0.55]
[1754612038711,3.982,3913.6,3913.5,0.55]
[1754612038948,4.4212,3913.6,3913.5,0.55]
[1754612039129,4.4212,3913.6,3913.5,0.678]
[1754612039442,5.0063,3913.6,3913.5,0.678]
[1754612039647,5.0063,3913.6,3913.5,3.23325744]
[1754612039836,5.0063,3913.6,3913.5,0.678]
[1754612040039,5.0063,3913.6,3913.5,3.23325744]
[1754612040240,5.0063,3913.6,3913.5,0.678]
[1754612040638,5.4455,3913.6,3913.5,0.678]
[1754612041057,6.60765,3913.6,3912.9,3.10564208]
[1754612041262,4.01881472,3913.5,3913.2,0.128]
[1754612041566,1.4635,3913.5,3913.2,0.55]
[1754612041756,1.4635,3913.4,3913.2,0.55]
[1754612042156,1.4635,3913.3,3913.2,0.55]
[1754612042456,1.4635,3913.3,3913.2,3.55]
[1754612042636,1.4635,3913.3,3913.2,0.55]
[1754612043141,1.0243,3913.3,3913.2,0.55]
[1754612043946,3.982,3913.6,3913.2,3.10544946]
[1754612044152,3.982,3913.6,3913.4,0.55]
[1754612044153,5.0063,3913.6,3913.4,0.55]
[1754612044762,3.982,3913.6,3913.5,0.678]
[1754612045144,5.4455,3913.6,3913.5,0.55]
[1754612045470,6.71680576,3913.6,3913.5,0.55]
[1754612045671,3.982,3913.6,3913.5,3.10525744]
[1754612045842,3.982,3913.6,3913.5,3.23325744]
[1754612046582,6.136,3913.8,3913.6,0.55]
[1754612046897,3.982,3913.7,3913.6,0.55]
[1754612047183,5.4455,3913.7,3913.6,0.55]
[1754612047367,5.4455,3913.7,3913.6,3.23319215]
[1754612047565,5.4455,3913.7,3913.6,0.55]
[1754612048472,5.4455,3913.7,3913.6,3.10519215]
[1754612048971,5.0063,3913.7,3913.6,3.10519215]
[1754612049171,5.4455,3913.7,3913.6,0.55]
[1754612049670,0.04,3913.9,3913.8,3.10506157]
[1754612049971,4.022,3913.9,3913.8,0.55]
[1754612050545,5.4855,3913.9,3913.8,0.55]
[1754612050976,6.03425,3913.9,3913.8,0.55]
[1754612051276,8.58924629,3913.9,3913.8,0.55]
[1754612051979,6.03425,3913.9,3913.8,0.55]
[1754612053380,8.58924629,3913.9,3913.8,0.55]
[1754612054976,6.03425,3913.9,3913.8,0.55]
[1754612055553,0.04,3913.9,3913.8,0.55]
[1754612055757,5.3841,3913.9,3913.8,0.55]
[1754612055953,0.04,3913.9,3913.8,0.55]
[1754612056168,4.022,3913.9,3913.8,3.10506157]
[1754612056375,4.022,3913.9,3913.8,0.55]
[1754612056575,5.3841,3913.9,3913.8,0.55]
[1754612057847,5.3841,3913.9,3912.1,3.001]
[1754612057848,5.92590358,3913.9,3912.1,3.001]
[1754612058053,1.3621,3913.8,3913.2,0.55]
[1754612058264,3.982,3913.7,3913.2,0.55]
[1754612058579,5.3441,3913.7,3913.1,0.55]
[1754612058776,0.9146,3913.6,3913.1,3.55]
[1754612059074,6.98463577,3913.7,3912.5,0.001]
[1754612059075,1.3621,3913.5,3912.5,0.001]
[1754612059376,2.55553284,3913.1,3912.5,0.001]
[1754612059587,6.57028927,3913.4,3912.5,0.001]
[1754612059588,4.01394479,3913.0,3912.5,2.55691004]
[1754612059760,5.3441,3912.9,3912.6,3.0]
[1754612059956,3.982,3912.9,3912.5,2.55689897]
[1754612060277,3.982,3912.9,3912.5,0.001]
[1754612060278,1.39404643,3912.8,3912.5,0.001]
[1754612060447,3.91782286,3912.8,3912.5,0.001]
[1754612060648,1.3621,3912.7,3912.5,0.001]
[1754612060846,3.983,3912.6,3912.5,0.001]
[1754612061077,5.3451,3912.6,3912.5,0.001]
[1754612061576,7.90094521,3912.6,3912.5,0.001]
[1754612061776,8.9466121,3912.6,3912.5,0.001]
[1754612064668,8.9466121,3912.6,3912.5,1e-08]
[1754612065065,11.9466121,3912.6,3912.5,1e-08]
[1754612065277,2.55610653,3912.2,3912.1,1e-08]
[1754612065589,6.57005786,3912.2,3912.1,1e-08]
[1754612065895,8.94902445,3912.2,3912.1,1e-08]
[1754612066096,2.55636791,3911.8,3911.7,0.001]
[1754612066393,2.55649861,3911.6,3911.5,0.001]
[1754612066701,7.48423695,3911.6,3911.5,0.001]
[1754612066861,8.81438072,3911.6,3911.5,0.001]
[1754612067868,8.94238072,3911.6,3911.5,0.001]
[1754612073301,4.95938072,3911.6,3911.5,0.001]
[1754612073802,8.94338072,3911.6,3911.5,0.001]
[1754612076891,4.95938072,3911.6,3911.5,0.001]
[1754612077092,8.94338072,3911.6,3911.5,0.001]
[1754612081702,8.49588072,3911.6,3911.5,0.001]
[1754612082209,8.94338072,3911.6,3911.5,0.001]
[1754612083301,4.51188072,3911.6,3911.5,0.001]
[1754612083512,8.49588072,3911.6,3911.5,0.001]
[1754612084221,8.96518072,3911.6,3911.5,0.001]
[1754612087812,8.96518072,3911.6,3911.5,1e-08]
[1754612088124,11.96518072,3911.6,3911.5,1e-08]
[1754612088424,11.96518072,3911.6,3910.9,1e-08]
[1754612088425,2.55682544,3911.1,3910.9,1e-08]
[1754612088610,9.57285195,3911.0,3910.9,1e-08]
[1754612088924,10.98579082,3911.0,3910.9,1e-08]
[1754612089426,11.11379082,3911.0,3910.9,1e-08]
[1754612093738,10.64449082,3911.0,3910.9,1e-08]
[1754612094028,8.29262686,3911.0,3910.9,1e-08]
[1754612094613,4.30762686,3911.0,3910.9,1e-08]
[1754612094817,6.66989082,3911.0,3910.9,1e-08]
[1754612095015,0.128,3911.0,3910.9,1e-08]
[1754612095205,6.66889082,3911.0,3910.9,1.26240001]
[1754612095391,6.66889082,3911.0,3910.9,0.55000001]
[1754612095392,4.112,3911.0,3910.9,0.55000001]
[1754612095599,6.66889082,3911.0,3910.9,0.55000001]
[1754612096511,7.59145759,3911.0,3910.9,0.55000001]
[1754612099432,8.56705759,3911.0,3910.9,0.55000001]
[1754612099637,9.03635759,3911.0,3910.9,0.55000001]
[1754612100741,12.03635759,3911.0,3910.9,1e-08]
[1754612100952,5.55708696,3910.7,3910.6,1e-08]
[1754612101152,9.54108696,3910.7,3910.6,1e-08]
[1754612101450,5.55708696,3910.7,3910.6,1e-08]
[1754612101610,11.11398696,3910.7,3910.6,1e-08]
[1754612102036,9.66908696,3910.7,3910.6,1e-08]
[1754612102227,12.7382117,3910.7,3910.6,1e-08]
[1754612103953,27.2382117,3910.7,3910.6,1e-08]
[1754612104715,29.9372117,3910.7,3910.6,1e-08]
[1754612105764,29.9372117,3910.7,3909.7,0.001]
[1754612105765,8.25667558,3909.8,3909.7,1e-08]
[1754612105972,19.33534314,3909.8,3909.7,1e-08]
[1754612106144,20.78024314,3909.8,3909.7,1e-08]
[1754612106349,2.55806814,3909.2,3909.1,1e-08]
[1754612106530,2.55839537,3908.7,3908.2,0.001]
[1754612106713,2.55865721,3908.3,3908.2,0.001]
[1754612106912,8.25772268,3908.2,3908.1,1e-08]
[1754612107236,24.20262268,3908.2,3908.1,1e-08]
[1754612107640,24.33062268,3908.2,3908.1,1e-08]
[1754612108536,22.88572268,3908.2,3908.1,1e-08]
[1754612108751,25.14732268,3908.2,3908.1,1e-08]
[1754612108933,13.20261277,3908.2,3908.1,1e-08]
[1754612109153,5.24201277,3908.2,3908.1,1e-08]
[1754612109457,7.67930671,3908.2,3908.1,1e-08]
[1754612109634,8.11662268,3908.2,3908.1,1e-08]
[1754612109829,7.64732268,3908.2,3908.1,1e-08]
[1754612110228,8.11662268,3908.2,3908.1,1e-08]
[1754612110537,2.68672268,3908.2,3908.1,1e-08]
[1754612110751,7.55383127,3908.2,3908.1,1e-08]
[1754612111035,7.52184724,3908.2,3908.1,1e-08]
[1754612111240,3.53684724,3908.2,3908.1,1e-08]
[1754612111469,8.99873127,3908.2,3908.1,1e-08]
[1754612111764,11.96674724,3908.2,3908.1,1e-08]
[1754612112320,12.06928424,3908.2,3908.1,1e-08]
[1754612114348,23.25361693,3908.2,3908.1,1e-08]
[1754612114856,23.25361693,3908.2,3907.7,0.001]
[1754612114857,5.55898459,3907.8,3907.7,1e-08]
[1754612115162,16.62877295,3907.8,3907.7,1e-08]
[1754612115359,18.06157295,3907.8,3907.7,1e-08]
[1754612115860,16.62877295,3907.8,3907.7,1e-08]
[1754612116875,17.58817295,3907.8,3907.7,1e-08]
[1754612117243,18.06157295,3907.8,3907.7,1e-08]
[1754612119702,20.75757295,3907.8,3907.7,1e-08]
[1754612120569,5.25524655,3907.4,3907.1,0.04]
[1754612120882,8.25544306,3907.1,3907.0,1e-08]
[1754612121051,12.24244306,3907.1,3907.0,1e-08]
[1754612121258,13.67524306,3907.1,3907.0,1e-08]
[1754612121588,16.23053315,3907.1,3907.0,1e-08]
[1754612122457,16.33309715,3907.1,3907.0,1e-08]
[1754612123280,16.33309715,3907.1,3906.2,0.001]
[1754612123281,5.25577064,3906.6,3906.2,0.001]
[1754612123490,12.27476777,3906.6,3906.2,0.001]
[1754612123692,16.23086073,3906.6,3906.2,0.001]
[1754612123891,30.73086073,3906.6,3906.2,0.001]
[1754612124205,5.55996723,3906.3,3906.2,0.001]
[1754612124373,9.54696723,3906.3,3906.2,0.001]
[1754612124560,9.67496723,3906.3,3906.2,0.001]
[1754612124759,12.23025732,3906.3,3906.2,0.001]
[1754612125168,13.66305732,3906.3,3906.2,0.001]
[1754612125692,13.66305732,3906.3,3905.6,0.001]
[1754612125693,5.25603276,3906.2,3906.1,1e-08]
[1754612125892,9.58003316,3906.2,3906.1,1e-08]
[1754612126063,9.54803276,3906.2,3906.1,1e-08]
[1754612126259,9.54803276,3906.2,3905.2,0.001]
[1754612126260,2.56068831,3905.2,3904.6,0.001]
[1754612126469,2.56068831,3905.2,3905.1,1e-08]
[1754612126470,29.7115666,3905.2,3905.1,1e-08]
[1754612126671,42.74684809,3905.2,3905.1,1e-08]
[1754612126901,32.7519784,3905.2,3905.1,1e-08]
[1754612127268,14.2639784,3905.2,3905.1,1e-08]
[1754612127466,6.148,3905.2,3905.1,1e-08]
[1754612127676,10.139,3905.2,3905.1,1.20840001]
[1754612128675,10.139,3905.2,3905.1,0.55000001]
[1754612128874,16.65908831,3905.2,3905.1,1e-08]
[1754612129192,22.02005748,3905.2,3905.1,1e-08]
[1754612129557,3.0,3904.8,3904.6,1e-08]
[1754612129762,12.29002891,3904.7,3904.6,1e-08]
[1754612129993,25.49481621,3904.7,3904.6,1e-08]
[1754612130160,28.0501063,3904.7,3904.6,1e-08]
[1754612130789,28.44467367,3904.7,3904.6,1e-08]
[1754612131216,22.6163063,3904.7,3904.6,1e-08]
[1754612131400,12.1193063,3904.7,3904.6,1e-08]
[1754612131710,10.52341621,3904.7,3904.6,1e-08]
[1754612131922,9.56401621,3904.7,3904.6,1e-08]
[1754612132414,9.56501621,3904.7,3904.6,1e-08]
[1754612133203,5.56101621,3904.7,3904.6,1e-08]
[1754612133513,6.56501621,3904.7,3904.6,1e-08]
[1754612133680,2.56101621,3904.7,3904.6,1e-08]
[1754612133883,6.56301621,3904.7,3904.6,1.19420001]
[1754612134286,6.56301621,3904.7,3904.6,0.55000001]
[1754612135417,6.56301621,3904.7,3904.6,1e-08]
[1754612135781,10.99581621,3904.7,3904.6,1e-08]
[1754612136028,12.35148929,3904.7,3904.6,1e-08]
[1754612136382,8.47748929,3904.7,3904.6,1e-08]
[1754612136588,7.04468929,3904.7,3904.6,1e-08]
[1754612136818,11.04868929,3904.7,3904.6,1e-08]
[1754612137120,7.04468929,3904.7,3904.6,1e-08]
[1754612137322,11.04868929,3904.7,3904.6,1e-08]
[1754612137528,2.68901621,3904.7,3904.6,1e-08]
[1754612137691,8.84255237,3905.2,3904.7,0.55]
[1754612138022,2.56081946,3905.0,3904.9,0.55]
[1754612138319,4.006,3905.1,3904.6,1e-08]
[1754612138485,4.006,3905.0,3904.6,1e-08]
[1754612138691,4.006,3904.9,3904.6,1e-08]
[1754612138892,2.56095062,3904.8,3904.7,0.55]
[1754612139426,0.03201188,3904.8,3904.6,1e-08]
[1754612139627,6.148,3905.2,3904.8,0.55]
[1754612139932,6.148,3905.2,3904.6,1e-08]
[1754612139933,4.006,3905.1,3905.0,0.55]
[1754612140231,6.148,3905.2,3905.1,0.6442]
[1754612140524,12.71673524,3905.2,3905.1,0.55]
[1754612141025,10.156,3905.2,3905.1,0.55]
[1754612141204,12.71668831,3905.2,3905.1,1.1942]
[1754612141921,10.156,3905.2,3905.1,1.1942]
[1754612142936,8.70868831,3905.2,3905.1,1.1942]
[1754612143239,12.71568831,3905.2,3905.1,1.1942]
[1754612143527,6.148,3905.2,3905.1,1.1942]
[1754612143828,10.153,3905.2,3905.1,1.1942]
[1754612144391,6.148,3905.2,3905.1,1.1942]
[1754612144805,10.151,3905.2,3905.1,1.1942]
[1754612145202,6.148,3905.2,3905.1,1.1942]
[1754612145406,10.15,3905.2,3905.1,1.1942]
[1754612145819,10.151,3905.2,3905.1,1.1942]
[1754612147245,10.151,3905.2,3904.7,2.56101565]
[1754612147399,4.009,3905.1,3904.8,0.6442]
[1754612147598,4.009,3905.1,3904.9,0.55]
[1754612147929,6.148,3905.2,3904.7,2.56099379]
[1754612147930,4.14,3905.0,3904.7,2.56099379]
[1754612148129,4.14,3905.0,3904.7,0.55]
[1754612148337,6.148,3905.2,3904.7,0.55]
[1754612148631,0.13377395,3906.5,3905.4,0.55]
[1754612148833,4.016,3906.4,3905.9,0.55]
[1754612148998,6.19,3906.9,3906.7,0.55]
[1754612149331,4.016,3906.8,3906.7,1.1942]
[1754612149759,6.19,3906.9,3906.8,0.55]
[1754612150029,10.206,3906.9,3906.8,0.55]
[1754612150232,10.206,3906.9,3906.3,0.8932]
[1754612150406,10.206,3906.9,3906.4,2.559896]
[1754612150731,10.206,3906.9,3906.7,0.55]
[1754612151028,10.206,3906.9,3906.8,0.55]
[1754612151328,10.206,3906.9,3906.5,0.55]
[1754612151727,10.206,3906.9,3906.5,1.1942]
[1754612152331,10.206,3906.9,3906.3,3.10995162]
[1754612152528,10.206,3906.9,3906.5,0.55]
[1754612153030,12.76559182,3906.9,3906.4,0.55]
[1754612153239,10.206,3906.9,3906.4,0.55]
[1754612154245,10.206,3906.9,3906.1,3.55]
[1754612154246,3.4863869,3906.8,3906.1,3.55]
[1754612154419,4.011,3906.7,3906.1,3.55]
[1754612155261,0.04,3906.9,3906.3,0.55]
[1754612155548,0.04,3906.9,3906.2,0.6442]
[1754612155549,0.08418856,3907.1,3907.0,3.10950857]
[1754612155740,2.55868338,3908.3,3907.6,0.55]
[1754612155918,4.016,3907.7,3907.6,0.55]
[1754612156122,4.016,3907.7,3907.6,3.10911556]
[1754612156323,4.016,3907.7,3907.6,0.55]
[1754612158856,4.013,3907.7,3907.6,0.55]
[1754612159929,4.013,3907.7,3907.6,3.55]
[1754612160253,4.013,3907.7,3907.6,0.55]
[1754612160829,4.011,3907.7,3907.6,0.55]
[1754612164559,0.002,3907.7,3907.6,3.10911556]
[1754612164784,4.006,3907.7,3907.6,0.55]
[1754612165136,4.006,3907.7,3907.6,3.53811556]
[1754612165337,4.003,3907.7,3907.6,3.53811556]
[1754612165532,4.003,3907.7,3907.6,6.41011556]
[1754612165745,0.002,3907.7,3907.6,10.68011556]
[1754612166064,0.002,3907.7,3907.6,10.80811556]
[1754612166265,4.004,3907.7,3907.6,10.80811556]
[1754612166572,4.041,3907.9,3907.8,6.10898459]
[1754612166867,0.04,3907.9,3907.8,17.52385428]
[1754612167044,0.04,3907.9,3907.8,17.82485428]
[1754612167957,0.04,3907.9,3907.8,6.23698459]
[1754612168674,0.04,3907.9,3907.8,3.128]
[1754612168871,1.8329,3907.9,3907.6,0.128]
[1754612169037,1.8329,3907.9,3906.8,0.19277977]
[1754612169038,0.128,3907.7,3906.8,2.55958768]
[1754612169366,5.42248894,3907.6,3906.9,0.128]
[1754612169566,2.55944626,3907.1,3906.6,0.128]
[1754612169768,4.002,3907.0,3906.5,3.0]
[1754612169936,1.3885,3906.9,3906.4,0.128]
[1754612170338,1.3885,3906.9,3905.9,0.19151742]
[1754612170339,0.9267,3907.8,3906.8,3.0]
[1754612170567,0.128,3907.6,3907.0,2.68750244]
[1754612170772,0.128,3907.6,3907.2,3.55]
[1754612170967,4.002,3907.5,3907.1,0.55]
[1754612171348,1.3885,3907.4,3907.1,0.55]
[1754612171544,1.3885,3907.4,3907.3,0.55]
[1754612172172,0.9267,3907.4,3907.1,0.55]
[1754612172369,4.002,3907.5,3907.1,0.55]
[1754612172370,0.9267,3907.3,3907.1,0.55]
[1754612172751,1.0547,3907.3,3906.9,0.55]
[1754612172942,0.4618,3907.2,3906.9,0.55]
[1754612173276,4.002,3907.1,3906.8,0.55]
[1754612173581,1.3165,3907.0,3906.8,0.55]
[1754612174071,6.56148986,3907.1,3906.4,3.0]
[1754612174273,2.55966977,3906.8,3906.5,0.128]
[1754612174476,0.128,3906.6,3906.3,0.001]
[1754612174677,2.68777204,3906.6,3906.3,0.001]
[1754612174876,0.128,3906.6,3906.3,0.001]
[1754612175080,0.128,3906.6,3906.3,3.001]
[1754612175258,0.128,3906.6,3906.4,0.55]
[1754612175455,4.0,3906.5,3906.4,0.55]
[1754612176275,4.0,3906.5,3906.3,3.551]
[1754612176645,1.3586,3906.4,3906.3,0.001]
[1754612177047,2.55996723,3906.3,3905.4,0.128]
[1754612177288,2.56031207,3905.8,3905.3,0.128]
[1754612177481,0.128,3905.5,3905.0,0.128]